[Event "Titled Tuesday Blitz November 01 Early 2022"]
[White "Garv Gaur"]
[Black "Shapiro, Daniel"]
[WhiteFideId "45030839"]
[BlackFideId "2001780"]
[WhiteElo "1960"]
[BlackElo "2242"]
[Result "1-0"]
[Round "07"]
[TimeControl "180+1"]
[Date "2022.11.02"]
[WhiteClock "0:00:09"]
[BlackClock "0:00:04"]

1. d4 {[%clk 0:03:00]}  Nf6 {[%clk 0:02:59]} 2. Nf3 {[%clk 0:02:59]}  b6 {[%clk 0:02:58]} 3. c4 {[%clk 0:03:00]}  e6 {[%clk 0:02:57]} 4. g3 {[%clk 0:02:59]}  Bb4+ {[%clk 0:02:55]} 5. Bd2 {[%clk 0:02:58]}  Be7 {[%clk 0:02:54]} 6. Bg2 {[%clk 0:02:57]}  c6 {[%clk 0:02:55]} 7. O-O {[%clk 0:02:57]}  Ba6 {[%clk 0:02:54]} 8. Qc2 {[%clk 0:02:54]}  d5 {[%clk 0:02:54]} 9. b3 {[%clk 0:02:51]}  Nbd7 {[%clk 0:02:47]} 10. Rd1 {[%clk 0:02:47]}  O-O {[%clk 0:02:46]} 11. Bf4 {[%clk 0:02:47]}  Rc8 {[%clk 0:02:46]} 12. Ne5 {[%clk 0:02:41]}  c5 {[%clk 0:02:36]} 13. dxc5 {[%clk 0:02:38]}  Bxc5 {[%clk 0:02:31]} 14. Nd2 {[%clk 0:02:34]}  Nh5 {[%clk 0:02:24]} 15. Nxd7 {[%clk 0:02:31]}  Nxf4 {[%clk 0:02:13]} 16. Nxf8 {[%clk 0:02:22]}  Nxg2 {[%clk 0:02:12]} 17. Kxg2 {[%clk 0:02:23]}  Bxf8 {[%clk 0:02:02]} 18. Nf3 {[%clk 0:02:22]}  Qf6 {[%clk 0:01:59]} 19. Qd2 {[%clk 0:02:08]}  dxc4 {[%clk 0:01:55]} 20. bxc4 {[%clk 0:02:09]}  Bxc4 {[%clk 0:01:44]} 21. Rac1 {[%clk 0:02:07]}  b5 {[%clk 0:01:38]} 22. Qc3 {[%clk 0:01:49]}  Qxc3 {[%clk 0:01:31]} 23. Rxc3 {[%clk 0:01:50]}  Rb8 {[%clk 0:01:30]} 24. Rc2 {[%clk 0:01:48]}  g6 {[%clk 0:01:24]} 25. Ne5 {[%clk 0:01:38]}  Bd5+ {[%clk 0:01:23]} 26. f3 {[%clk 0:01:38]}  Bg7 {[%clk 0:01:18]} 27. Nd7 {[%clk 0:01:38]}  Ra8 {[%clk 0:01:03]} 28. e4 {[%clk 0:01:16]}  Bc4 {[%clk 0:01:02]} 29. Nc5 {[%clk 0:01:15]}  Bf8 {[%clk 0:00:51]} 30. Nb3 {[%clk 0:01:11]}  a5 {[%clk 0:00:49]} 31. Nd2 {[%clk 0:01:09]}  Rd8 {[%clk 0:00:48]} 32. Rdc1 {[%clk 0:01:04]}  Ba3 {[%clk 0:00:43]} 33. Rh1 {[%clk 0:00:40]}  Bd3 {[%clk 0:00:35]} 34. Rc7 {[%clk 0:00:38]}  a4 {[%clk 0:00:30]} 35. Nb1 {[%clk 0:00:36]}  Bb2 {[%clk 0:00:26]} 36. Rd1 {[%clk 0:00:34]}  Rd4 {[%clk 0:00:19]} 37. Nc3 {[%clk 0:00:32]}  e5 {[%clk 0:00:11]} 38. Nd5 {[%clk 0:00:29]}  Bc4 {[%clk 0:00:07]} 39. Rxd4 {[%clk 0:00:28]}  exd4 {[%clk 0:00:07]} 40. Nf6+ {[%clk 0:00:24]}  Kg7 {[%clk 0:00:06]} 41. Ne8+ {[%clk 0:00:24]}  Kf8 {[%clk 0:00:06]} 42. Nd6 {[%clk 0:00:24]}  Bxa2 {[%clk 0:00:06]} 43. Nxb5 {[%clk 0:00:23]}  d3 {[%clk 0:00:06]} 44. Rd7 {[%clk 0:00:21]}  Bb1 {[%clk 0:00:07]} 45. Nd6 {[%clk 0:00:17]}  a3 {[%clk 0:00:06]} 46. Rxf7+ {[%clk 0:00:11]}  Kg8 {[%clk 0:00:07]} 47. Rb7 {[%clk 0:00:06]}  Kf8 {[%clk 0:00:08]} 48. Nc4 {[%clk 0:00:05]}  Kg8 {[%clk 0:00:09]} 49. Nxb2 {[%clk 0:00:05]}  a2 {[%clk 0:00:10]} 50. Ra7 {[%clk 0:00:04]}  a1=Q {[%clk 0:00:11]} 51. Rxa1 {[%clk 0:00:04]}  Bc2 {[%clk 0:00:09]} 52. Nd1 {[%clk 0:00:05]}  d2 {[%clk 0:00:10]} 53. Nf2 {[%clk 0:00:05]}  Kf7 {[%clk 0:00:10]} 54. Ra2 {[%clk 0:00:04]}  d1=Q {[%clk 0:00:08]} 55. Nxd1 {[%clk 0:00:04]}  Bxd1 {[%clk 0:00:09]} 56. Rd2 {[%clk 0:00:05]}  Bb3 {[%clk 0:00:09]} 57. Rd7+ {[%clk 0:00:05]}  Kg8 {[%clk 0:00:08]} 58. f4 {[%clk 0:00:06]}  Bf7 {[%clk 0:00:08]} 59. e5 {[%clk 0:00:05]}  Kf8 {[%clk 0:00:09]} 60. Rc7 {[%clk 0:00:06]}  Bg8 {[%clk 0:00:08]} 61. Kf2 {[%clk 0:00:06]}  h5 {[%clk 0:00:08]} 62. Ke3 {[%clk 0:00:07]}  Be6 {[%clk 0:00:07]} 63. Kd4 {[%clk 0:00:08]}  Bg4 {[%clk 0:00:07]} 64. Kc5 {[%clk 0:00:08]}  Ke8 {[%clk 0:00:07]} 65. Kd6 {[%clk 0:00:09]}  Kf8 {[%clk 0:00:06]} 66. Ra7 {[%clk 0:00:09]}  Bf5 {[%clk 0:00:06]} 67. e6 {[%clk 0:00:09]}  Kg8 {[%clk 0:00:04]} 68. e7 {[%clk 0:00:09]} 1-0


[Site "https://www.chess.com"]

[Event "Titled Tuesday Blitz November 01 Early 2022"]
[White "Gorodetzky, David"]
[Black "Bortnyk, Olexandr"]
[WhiteFideId "2813416"]
[BlackFideId "14120828"]
[WhiteElo "2487"]
[BlackElo "2723"]
[Result "0-1"]
[Round "07"]
[TimeControl "180+1"]
[Date "2022.11.01"]
[WhiteClock "0:00:01"]
[BlackClock "0:00:10"]

1. Nf3 {[%clk 0:02:50]}  d6 {[%clk 0:02:58]} 2. d4 {[%clk 0:02:48]}  g6 {[%clk 0:02:58]} 3. e4 {[%clk 0:02:47]}  Bg7 {[%clk 0:02:58]} 4. Nc3 {[%clk 0:02:47]}  a6 {[%clk 0:02:58]} 5. a4 {[%clk 0:02:46]}  b6 {[%clk 0:02:57]} 6. Bd3 {[%clk 0:02:44]}  Bb7 {[%clk 0:02:57]} 7. Ne2 {[%clk 0:02:44]}  Nd7 {[%clk 0:02:54]} 8. c3 {[%clk 0:02:43]}  Ngf6 {[%clk 0:02:43]} 9. Ng3 {[%clk 0:02:42]}  e5 {[%clk 0:02:43]} 10. h3 {[%clk 0:02:39]}  O-O {[%clk 0:02:42]} 11. O-O {[%clk 0:02:36]}  Re8 {[%clk 0:02:39]} 12. Re1 {[%clk 0:02:36]}  Qe7 {[%clk 0:02:31]} 13. Qc2 {[%clk 0:02:35]}  c5 {[%clk 0:02:18]} 14. d5 {[%clk 0:02:29]}  h6 {[%clk 0:02:10]} 15. Be3 {[%clk 0:02:26]}  Kh7 {[%clk 0:02:01]} 16. Rab1 {[%clk 0:02:23]}  Rec8 {[%clk 0:01:57]} 17. Qe2 {[%clk 0:02:22]}  Qe8 {[%clk 0:01:49]} 18. Nd2 {[%clk 0:02:13]}  Ng8 {[%clk 0:01:39]} 19. Nc4 {[%clk 0:02:07]}  Bf8 {[%clk 0:01:32]} 20. b4 {[%clk 0:02:05]}  Rc7 {[%clk 0:01:28]} 21. bxc5 {[%clk 0:01:55]}  Nxc5 {[%clk 0:01:24]} 22. Nxb6 {[%clk 0:01:51]}  Ra7 {[%clk 0:01:19]} 23. a5 {[%clk 0:01:46]}  Be7 {[%clk 0:01:17]} 24. Rb4 {[%clk 0:01:37]}  Bg5 {[%clk 0:01:16]} 25. Bxc5 {[%clk 0:01:25]}  Rxc5 {[%clk 0:01:15]} 26. Reb1 {[%clk 0:01:23]}  Qd8 {[%clk 0:01:09]} 27. Na4 {[%clk 0:01:07]}  Rc7 {[%clk 0:01:10]} 28. Rb6 {[%clk 0:01:07]}  Ne7 {[%clk 0:01:07]} 29. Bxa6 {[%clk 0:01:05]}  Bxa6 {[%clk 0:00:56]} 30. Rxa6 {[%clk 0:01:05]}  Qa8 {[%clk 0:00:56]} 31. Rbb6 {[%clk 0:00:57]}  Nc8 {[%clk 0:00:53]} 32. Rc6 {[%clk 0:00:53]}  Rxc6 {[%clk 0:00:52]} 33. Rxc6 {[%clk 0:00:53]}  Rxa5 {[%clk 0:00:52]} 34. Nb2 {[%clk 0:00:29]}  Ra1+ {[%clk 0:00:53]} 35. Kh2 {[%clk 0:00:29]}  Qa2 {[%clk 0:00:41]} 36. Rxc8 {[%clk 0:00:23]}  Bf4 {[%clk 0:00:41]} 37. h4 {[%clk 0:00:13]}  Qb1 {[%clk 0:00:38]} 38. Nd1 {[%clk 0:00:12]}  Qxd1 {[%clk 0:00:37]} 39. Qxd1 {[%clk 0:00:13]}  Rxd1 {[%clk 0:00:38]} 40. c4 {[%clk 0:00:11]}  Rd2 {[%clk 0:00:35]} 41. Kg1 {[%clk 0:00:11]}  Rd4 {[%clk 0:00:27]} 42. c5 {[%clk 0:00:04]}  dxc5 {[%clk 0:00:28]} 43. Rxc5 {[%clk 0:00:04]}  Kg7 {[%clk 0:00:28]} 44. Kf1 {[%clk 0:00:02]}  Kf6 {[%clk 0:00:24]} 45. Ke2 {[%clk 0:00:02]}  Bxg3 {[%clk 0:00:25]} 46. fxg3 {[%clk 0:00:03]}  Rxe4+ {[%clk 0:00:26]} 47. Kf3 {[%clk 0:00:03]}  Rd4 {[%clk 0:00:26]} 48. Rc6+ {[%clk 0:00:03]}  Kf5 {[%clk 0:00:23]} 49. Rd6 {[%clk 0:00:03]}  Rd3+ {[%clk 0:00:22]} 50. Kf2 {[%clk 0:00:03]}  h5 {[%clk 0:00:19]} 51. Rd7 {[%clk 0:00:03]}  f6 {[%clk 0:00:19]} 52. Rd6 {[%clk 0:00:03]}  Rd2+ {[%clk 0:00:18]} 53. Kf1 {[%clk 0:00:02]}  e4 {[%clk 0:00:17]} 54. Kg1 {[%clk 0:00:01]}  Rd3 {[%clk 0:00:12]} 55. Kf2 {[%clk 0:00:01]}  Rd1 {[%clk 0:00:08]} 56. Ke2 {[%clk 0:00:01]}  Rd4 {[%clk 0:00:08]} 57. Kf2 {[%clk 0:00:01]}  Rd3 {[%clk 0:00:09]} 58. Rd7 {[%clk 0:00:01]}  Ke5 {[%clk 0:00:09]} 59. d6 {[%clk 0:00:01]}  Rd2+ {[%clk 0:00:09]} 60. Kf1 {[%clk 0:00:01]}  Rd1+ {[%clk 0:00:09]} 61. Kf2 {[%clk 0:00:01]}  Rxd6 {[%clk 0:00:09]} 62. Kg1 {[%clk 0:00:01]}  Rxd7 {[%clk 0:00:10]} 0-1


[Site "https://www.chess.com"]

[Event "Titled Tuesday Blitz November 01 Early 2022"]
[White "Grave, Jacob Templen"]
[Black "Brown, Andrew"]
[WhiteFideId "1542656"]
[BlackFideId "3206513"]
[WhiteElo "2121"]
[BlackElo "2245"]
[Result "0-1"]
[Round "07"]
[TimeControl "180+1"]
[Date "2022.11.02"]
[WhiteClock "0:00:04"]
[BlackClock "0:00:10"]

1. d4 {[%clk 0:02:59]}  g6 {[%clk 0:03:00]} 2. c4 {[%clk 0:02:58]}  Bg7 {[%clk 0:03:01]} 3. Nc3 {[%clk 0:02:58]}  d6 {[%clk 0:03:01]} 4. e4 {[%clk 0:02:55]}  Nd7 {[%clk 0:03:01]} 5. Nf3 {[%clk 0:02:53]}  e5 {[%clk 0:03:01]} 6. Be2 {[%clk 0:02:51]}  Ne7 {[%clk 0:03:01]} 7. O-O {[%clk 0:02:50]}  O-O {[%clk 0:03:02]} 8. Rb1 {[%clk 0:02:28]}  a5 {[%clk 0:03:00]} 9. a3 {[%clk 0:02:26]}  f5 {[%clk 0:02:56]} 10. b4 {[%clk 0:02:17]}  axb4 {[%clk 0:02:52]} 11. axb4 {[%clk 0:02:18]}  exd4 {[%clk 0:02:42]} 12. Nxd4 {[%clk 0:02:17]}  Nf6 {[%clk 0:02:25]} 13. exf5 {[%clk 0:01:25]}  Nxf5 {[%clk 0:02:23]} 14. Nxf5 {[%clk 0:01:25]}  Bxf5 {[%clk 0:02:23]} 15. Bd3 {[%clk 0:01:26]}  Qd7 {[%clk 0:02:02]} 16. Be3 {[%clk 0:00:53]}  Ra3 {[%clk 0:01:48]} 17. Bxf5 {[%clk 0:00:51]}  Qxf5 {[%clk 0:01:47]} 18. Nb5 {[%clk 0:00:52]}  Ra2 {[%clk 0:01:25]} 19. Nxc7 {[%clk 0:00:42]}  Ng4 {[%clk 0:00:51]} 20. Qd5+ {[%clk 0:00:14]}  Rf7 {[%clk 0:00:34]} 21. Qxf5 {[%clk 0:00:14]}  gxf5 {[%clk 0:00:34]} 22. Nd5 {[%clk 0:00:14]}  Be5 {[%clk 0:00:23]} 23. Bf4 {[%clk 0:00:13]}  Rc2 {[%clk 0:00:17]} 24. h3 {[%clk 0:00:12]}  Rxc4 {[%clk 0:00:12]} 25. hxg4 {[%clk 0:00:10]}  Bxf4 {[%clk 0:00:12]} 26. gxf5 {[%clk 0:00:09]}  h5 {[%clk 0:00:09]} 27. Rfe1 {[%clk 0:00:08]}  Be5 {[%clk 0:00:09]} 28. g3 {[%clk 0:00:06]}  Kg7 {[%clk 0:00:08]} 29. Ne3 {[%clk 0:00:05]}  Rc3 {[%clk 0:00:07]} 30. b5 {[%clk 0:00:05]}  Rfc7 {[%clk 0:00:06]} 31. b6 {[%clk 0:00:05]}  R7c6 {[%clk 0:00:06]} 32. Rb5 {[%clk 0:00:04]}  Ra3 {[%clk 0:00:05]} 33. Rd5 {[%clk 0:00:03]}  Ra2 {[%clk 0:00:05]} 34. Rb5 {[%clk 0:00:02]}  Bd4 {[%clk 0:00:05]} 35. Kg2 {[%clk 0:00:02]}  Rc5 {[%clk 0:00:04]} 36. Rxc5 {[%clk 0:00:02]}  Bxc5 {[%clk 0:00:05]} 37. Kf3 {[%clk 0:00:01]}  Rb2 {[%clk 0:00:05]} 38. Ng2 {[%clk 0:00:01]}  Rxf2+ {[%clk 0:00:05]} 39. Ke4 {[%clk 0:00:01]}  Rxg2 {[%clk 0:00:06]} 40. Kd5 {[%clk 0:00:01]}  Rd2+ {[%clk 0:00:06]} 41. Ke6 {[%clk 0:00:01]}  Kf8 {[%clk 0:00:07]} 42. Kd7 {[%clk 0:00:01]}  Kf7 {[%clk 0:00:06]} 43. Re7+ {[%clk 0:00:01]}  Kf6 {[%clk 0:00:07]} 44. Rh7 {[%clk 0:00:01]}  Kxf5 {[%clk 0:00:07]} 45. Rxh5+ {[%clk 0:00:01]}  Kg4 {[%clk 0:00:08]} 46. Rh7 {[%clk 0:00:01]}  Rb2 {[%clk 0:00:08]} 47. Kc8 {[%clk 0:00:02]}  Rxb6 {[%clk 0:00:08]} 48. Rxb7 {[%clk 0:00:01]}  Rxb7 {[%clk 0:00:08]} 49. Kxb7 {[%clk 0:00:02]}  d5 {[%clk 0:00:08]} 50. Kc6 {[%clk 0:00:03]}  d4 {[%clk 0:00:09]} 51. Kxc5 {[%clk 0:00:04]}  d3 {[%clk 0:00:10]} 0-1


[Site "https://www.chess.com"]

[Event "Titled Tuesday Blitz November 01 Early 2022"]
[White "Gurevich, Dmitry"]
[Black "Zacurdajev, Dmitry"]
[WhiteFideId "2000407"]
[BlackFideId "4196309"]
[WhiteElo "2506"]
[BlackElo "2179"]
[Result "1-0"]
[Round "07"]
[TimeControl "180+1"]
[Date "2022.11.02"]
[WhiteClock "0:00:39"]
[BlackClock "0:00:01"]

1. d4 {[%clk 0:03:00]}  d5 {[%clk 0:02:59]} 2. c4 {[%clk 0:03:00]}  e6 {[%clk 0:02:59]} 3. Nc3 {[%clk 0:02:59]}  Nf6 {[%clk 0:03:00]} 4. Nf3 {[%clk 0:02:59]}  Be7 {[%clk 0:03:00]} 5. g3 {[%clk 0:02:58]}  O-O {[%clk 0:02:59]} 6. Bg2 {[%clk 0:02:58]}  dxc4 {[%clk 0:02:59]} 7. Ne5 {[%clk 0:02:58]}  Nc6 {[%clk 0:02:57]} 8. Bxc6 {[%clk 0:02:57]}  bxc6 {[%clk 0:02:58]} 9. Nxc6 {[%clk 0:02:57]}  Qe8 {[%clk 0:02:59]} 10. Nxe7+ {[%clk 0:02:55]}  Qxe7 {[%clk 0:02:59]} 11. Qa4 {[%clk 0:02:55]}  e5 {[%clk 0:02:43]} 12. Qxc4 {[%clk 0:02:52]}  exd4 {[%clk 0:02:35]} 13. Qxd4 {[%clk 0:02:51]}  Rd8 {[%clk 0:02:31]} 14. Qe3 {[%clk 0:02:48]}  Qd6 {[%clk 0:02:12]} 15. O-O {[%clk 0:02:45]}  Bh3 {[%clk 0:02:10]} 16. Re1 {[%clk 0:02:43]}  Ng4 {[%clk 0:01:59]} 17. Qf4 {[%clk 0:02:24]}  Qc6 {[%clk 0:01:46]} 18. e4 {[%clk 0:02:21]}  Rab8 {[%clk 0:01:13]} 19. Nd5 {[%clk 0:02:18]}  Re8 {[%clk 0:00:29]} 20. Be3 {[%clk 0:02:00]}  Nxe3 {[%clk 0:00:22]} 21. Rxe3 {[%clk 0:01:55]}  Rxb2 {[%clk 0:00:21]} 22. Rc3 {[%clk 0:01:51]}  Qb5 {[%clk 0:00:12]} 23. Nxc7 {[%clk 0:01:35]}  Rb1+ {[%clk 0:00:07]} 24. Rxb1 {[%clk 0:01:35]}  Qxb1+ {[%clk 0:00:06]} 25. Rc1 {[%clk 0:01:16]}  Qxe4 {[%clk 0:00:07]} 26. Qxe4 {[%clk 0:01:12]}  Rxe4 {[%clk 0:00:08]} 27. Nd5 {[%clk 0:01:11]}  h6 {[%clk 0:00:05]} 28. f3 {[%clk 0:01:08]}  Ra4 {[%clk 0:00:04]} 29. Rc2 {[%clk 0:00:58]}  Be6 {[%clk 0:00:04]} 30. Nc3 {[%clk 0:00:54]}  Rc4 {[%clk 0:00:04]} 31. Kf2 {[%clk 0:00:54]}  Kf8 {[%clk 0:00:04]} 32. Ke3 {[%clk 0:00:54]}  Ke7 {[%clk 0:00:04]} 33. Kd3 {[%clk 0:00:47]}  Rc8 {[%clk 0:00:02]} 34. g4 {[%clk 0:00:40]}  Kd6 {[%clk 0:00:01]} 35. Ne4+ {[%clk 0:00:40]}  Ke7 {[%clk 0:00:01]} 36. Rc6 {[%clk 0:00:39]} 1-0


[Site "https://www.chess.com"]

[Event "Titled Tuesday Blitz November 01 Early 2022"]
[White "Harriott, Tyrell"]
[Black "Ginzburg, Yakov"]
[WhiteFideId "2086484"]
[BlackFideId "4157176"]
[WhiteElo "2107"]
[BlackElo "2305"]
[Result "1/2-1/2"]
[Round "07"]
[TimeControl "180+1"]
[Date "2022.11.02"]
[WhiteClock "0:00:09"]
[BlackClock "0:00:25"]

1. d4 {[%clk 0:03:00]}  d5 {[%clk 0:02:59]} 2. e3 {[%clk 0:03:01]}  Nf6 {[%clk 0:02:59]} 3. Bd3 {[%clk 0:03:01]}  c5 {[%clk 0:02:59]} 4. c3 {[%clk 0:03:01]}  Nc6 {[%clk 0:02:58]} 5. f4 {[%clk 0:03:02]}  g6 {[%clk 0:02:57]} 6. Nf3 {[%clk 0:02:59]}  Bf5 {[%clk 0:02:57]} 7. O-O {[%clk 0:02:59]}  Bxd3 {[%clk 0:02:57]} 8. Qxd3 {[%clk 0:03:00]}  e6 {[%clk 0:02:57]} 9. Nbd2 {[%clk 0:03:00]}  Be7 {[%clk 0:02:55]} 10. Ne5 {[%clk 0:03:00]}  Qb6 {[%clk 0:02:54]} 11. Kh1 {[%clk 0:02:55]}  Rd8 {[%clk 0:02:48]} 12. Qe2 {[%clk 0:02:48]}  Nd7 {[%clk 0:02:44]} 13. Qg4 {[%clk 0:02:46]}  Qa6 {[%clk 0:02:32]} 14. Kg1 {[%clk 0:02:43]}  f5 {[%clk 0:02:20]} 15. Qh3 {[%clk 0:02:42]}  Ndxe5 {[%clk 0:02:19]} 16. fxe5 {[%clk 0:02:37]}  O-O {[%clk 0:02:18]} 17. Nf3 {[%clk 0:02:25]}  Qb6 {[%clk 0:01:49]} 18. b3 {[%clk 0:02:09]}  a5 {[%clk 0:01:45]} 19. Bd2 {[%clk 0:01:59]}  Ra8 {[%clk 0:01:45]} 20. Rab1 {[%clk 0:01:48]}  Qc7 {[%clk 0:01:43]} 21. Kh1 {[%clk 0:01:47]}  a4 {[%clk 0:01:42]} 22. g4 {[%clk 0:01:40]}  axb3 {[%clk 0:01:35]} 23. axb3 {[%clk 0:01:36]}  Ra2 {[%clk 0:01:34]} 24. Rf2 {[%clk 0:01:33]}  Qa5 {[%clk 0:01:13]} 25. Rg1 {[%clk 0:01:28]}  Ra1 {[%clk 0:01:10]} 26. Be1 {[%clk 0:01:21]}  Ra2 {[%clk 0:01:08]} 27. Bd2 {[%clk 0:01:11]}  Rxd2 {[%clk 0:01:03]} 28. Nxd2 {[%clk 0:01:01]}  Qxc3 {[%clk 0:01:03]} 29. Nf3 {[%clk 0:00:58]}  Qxe3 {[%clk 0:01:01]} 30. Kg2 {[%clk 0:00:46]}  Qe4 {[%clk 0:00:48]} 31. gxf5 {[%clk 0:00:44]}  Rxf5 {[%clk 0:00:48]} 32. Re1 {[%clk 0:00:34]}  Rxf3 {[%clk 0:00:38]} 33. Qxf3 {[%clk 0:00:26]}  Qxe1 {[%clk 0:00:37]} 34. Qf7+ {[%clk 0:00:17]}  Kh8 {[%clk 0:00:37]} 35. Qe8+ {[%clk 0:00:15]}  Kg7 {[%clk 0:00:37]} 36. Qf7+ {[%clk 0:00:13]}  Kh6 {[%clk 0:00:30]} 37. Qf4+ {[%clk 0:00:13]}  Bg5 {[%clk 0:00:27]} 38. Qf8+ {[%clk 0:00:11]}  Kh5 {[%clk 0:00:27]} 39. Qf3+ {[%clk 0:00:09]}  Kh6 {[%clk 0:00:25]} 40. Qf8+ {[%clk 0:00:09]}  Kh5 {[%clk 0:00:25]} 41. Qf3+ {[%clk 0:00:09]}  Kh6 {[%clk 0:00:25]} 42. Qf8+ {[%clk 0:00:09]} 1/2-1/2


[Site "https://www.chess.com"]

[Event "Titled Tuesday Blitz November 01 Early 2022"]
[White "Ismayil, Malak"]
[Black "Gulevich, Artem"]
[WhiteFideId "13412604"]
[BlackFideId "24119580"]
[WhiteElo "1879"]
[BlackElo "2218"]
[Result "1-0"]
[Round "07"]
[TimeControl "180+1"]
[Date "2022.11.02"]
[WhiteClock "0:02:17"]
[BlackClock "0:02:13"]

1. e4 {[%clk 0:03:00]}  c5 {[%clk 0:02:59]} 2. Nf3 {[%clk 0:03:00]}  Nc6 {[%clk 0:03:00]} 3. Bb5 {[%clk 0:02:57]}  Qb6 {[%clk 0:03:00]} 4. Bxc6 {[%clk 0:02:57]}  bxc6 {[%clk 0:03:00]} 5. d3 {[%clk 0:02:57]}  g6 {[%clk 0:03:00]} 6. O-O {[%clk 0:02:57]}  Bg7 {[%clk 0:03:01]} 7. Nc3 {[%clk 0:02:57]}  d6 {[%clk 0:02:59]} 8. h3 {[%clk 0:02:57]}  e5 {[%clk 0:02:59]} 9. Na4 {[%clk 0:02:52]}  Qc7 {[%clk 0:02:58]} 10. c3 {[%clk 0:02:49]}  f5 {[%clk 0:02:53]} 11. Re1 {[%clk 0:02:48]}  Ne7 {[%clk 0:02:53]} 12. d4 {[%clk 0:02:44]}  cxd4 {[%clk 0:02:51]} 13. cxd4 {[%clk 0:02:45]}  O-O {[%clk 0:02:47]} 14. dxe5 {[%clk 0:02:41]}  dxe5 {[%clk 0:02:47]} 15. Qb3+ {[%clk 0:02:40]}  Kh8 {[%clk 0:02:46]} 16. Ng5 {[%clk 0:02:40]}  Ng8 {[%clk 0:02:41]} 17. Nc5 {[%clk 0:02:34]}  Rb8 {[%clk 0:02:22]} 18. Qc4 {[%clk 0:02:22]}  Re8 {[%clk 0:02:13]} 19. Nf7+ {[%clk 0:02:17]} 1-0


[Site "https://www.chess.com"]

[Event "Titled Tuesday Blitz November 01 Early 2022"]
[White "Itkis, Boris"]
[Black "Pap, Gyula"]
[WhiteFideId "1209167"]
[BlackFideId "725323"]
[WhiteElo "2232"]
[BlackElo "2519"]
[Result "0-1"]
[Round "07"]
[TimeControl "180+1"]
[Date "2022.11.02"]
[WhiteClock "0:00:05"]
[BlackClock "0:00:39"]

1. c4 {[%clk 0:03:00]}  e6 {[%clk 0:02:56]} 2. Nf3 {[%clk 0:03:01]}  Nf6 {[%clk 0:02:54]} 3. g3 {[%clk 0:03:01]}  a6 {[%clk 0:02:53]} 4. Bg2 {[%clk 0:03:01]}  b5 {[%clk 0:02:53]} 5. b3 {[%clk 0:02:58]}  Bb7 {[%clk 0:02:48]} 6. O-O {[%clk 0:02:58]}  c5 {[%clk 0:02:38]} 7. Bb2 {[%clk 0:02:57]}  Be7 {[%clk 0:02:36]} 8. e3 {[%clk 0:02:53]}  O-O {[%clk 0:02:32]} 9. Qe2 {[%clk 0:02:52]}  d6 {[%clk 0:02:27]} 10. Ne1 {[%clk 0:02:46]}  Bxg2 {[%clk 0:02:24]} 11. Nxg2 {[%clk 0:02:41]}  Nc6 {[%clk 0:02:24]} 12. f4 {[%clk 0:02:40]}  d5 {[%clk 0:02:21]} 13. Na3 {[%clk 0:02:18]}  bxc4 {[%clk 0:02:14]} 14. bxc4 {[%clk 0:02:18]}  d4 {[%clk 0:02:15]} 15. g4 {[%clk 0:02:01]}  Rb8 {[%clk 0:02:11]} 16. Rab1 {[%clk 0:01:59]}  Qa5 {[%clk 0:02:08]} 17. d3 {[%clk 0:01:17]}  dxe3 {[%clk 0:01:53]} 18. Nxe3 {[%clk 0:01:16]}  Nd4 {[%clk 0:01:53]} 19. Qg2 {[%clk 0:01:05]}  Rfd8 {[%clk 0:01:47]} 20. g5 {[%clk 0:00:22]}  Ne8 {[%clk 0:01:47]} 21. Ng4 {[%clk 0:00:22]}  Nd6 {[%clk 0:01:31]} 22. Bxd4 {[%clk 0:00:22]}  cxd4 {[%clk 0:01:24]} 23. Nc2 {[%clk 0:00:21]}  Nf5 {[%clk 0:01:13]} 24. Rxb8 {[%clk 0:00:20]}  Rxb8 {[%clk 0:01:13]} 25. Kh1 {[%clk 0:00:18]}  Qxa2 {[%clk 0:01:08]} 26. h3 {[%clk 0:00:15]}  Bf8 {[%clk 0:01:05]} 27. Rf2 {[%clk 0:00:14]}  Rb2 {[%clk 0:00:55]} 28. Kh2 {[%clk 0:00:11]}  a5 {[%clk 0:00:45]} 29. Ne5 {[%clk 0:00:05]}  Ne3 {[%clk 0:00:39]} 0-1


[Site "https://www.chess.com"]

[Event "Titled Tuesday Blitz November 01 Early 2022"]
[White "Jakubowski, Krzysztof"]
[Black "Ozen, Bahadir"]
[WhiteFideId "1112848"]
[BlackFideId "6337058"]
[WhiteElo "2373"]
[BlackElo "2503"]
[Result "0-1"]
[Round "07"]
[TimeControl "180+1"]
[Date "2022.11.01"]
[WhiteClock "0:00:01"]
[BlackClock "0:00:50"]

1. e4 {[%clk 0:03:00]}  g6 {[%clk 0:03:00]} 2. d4 {[%clk 0:03:00]}  Bg7 {[%clk 0:03:00]} 3. Nc3 {[%clk 0:02:59]}  c6 {[%clk 0:03:01]} 4. f4 {[%clk 0:02:58]}  d5 {[%clk 0:03:01]} 5. e5 {[%clk 0:02:58]}  Nh6 {[%clk 0:03:01]} 6. Nf3 {[%clk 0:02:54]}  Bg4 {[%clk 0:03:01]} 7. h3 {[%clk 0:02:51]}  Bxf3 {[%clk 0:03:01]} 8. Qxf3 {[%clk 0:02:52]}  Nf5 {[%clk 0:02:54]} 9. Ne2 {[%clk 0:02:50]}  h5 {[%clk 0:02:44]} 10. g4 {[%clk 0:02:46]}  Nh4 {[%clk 0:02:24]} 11. Qg3 {[%clk 0:02:40]}  hxg4 {[%clk 0:02:15]} 12. hxg4 {[%clk 0:02:38]}  e6 {[%clk 0:02:15]} 13. Bd2 {[%clk 0:02:19]}  c5 {[%clk 0:02:14]} 14. O-O-O {[%clk 0:02:18]}  Nc6 {[%clk 0:02:13]} 15. dxc5 {[%clk 0:02:15]}  g5 {[%clk 0:02:12]} 16. Qb3 {[%clk 0:02:00]}  gxf4 {[%clk 0:02:02]} 17. Nxf4 {[%clk 0:01:41]}  Nxe5 {[%clk 0:01:37]} 18. Nh5 {[%clk 0:01:29]}  Bh6 {[%clk 0:01:12]} 19. Qxb7 {[%clk 0:00:43]}  Rb8 {[%clk 0:01:11]} 20. Qxa7 {[%clk 0:00:28]}  Bxd2+ {[%clk 0:01:12]} 21. Rxd2 {[%clk 0:00:27]}  Kf8 {[%clk 0:01:06]} 22. Qa6 {[%clk 0:00:20]}  Nhf3 {[%clk 0:01:05]} 23. Rg2 {[%clk 0:00:15]}  Qg5+ {[%clk 0:01:05]} 24. Kb1 {[%clk 0:00:14]}  Nd2+ {[%clk 0:00:49]} 25. Rxd2 {[%clk 0:00:01]}  Qxd2 {[%clk 0:00:50]} 26. Qd6+ {[%clk 0:00:01]}  Kg8 {[%clk 0:00:50]} 0-1


[Site "https://www.chess.com"]